fUSD/lending_fUSD_20251112
["ID","MTS","AMOUNT","RATE_DAILY","PERIOD"]
[393732258,1762955454737,-573.75855356,0.00039178,20]
[393732259,1762955454747,-500.0,0.00039178,20]
[393732260,1762955454756,-500.0,0.00039178,20]
[393732261,1762955454766,-247.66170784,0.00039178,20]
[393732262,1762955454775,-500.0,0.00039178,20]
[393732263,1762955454785,-500.0,0.00039178,20]
[393732264,1762955454796,-619.70034461,0.00039178,20]
[393732265,1762955454806,-500.0,0.00039178,20]
[393732266,1762955454816,-500.0,0.00039178,20]
[393732267,1762955454825,-500.0,0.00039178,20]
[393732268,1762955454835,-500.0,0.00039178,20]
[393732269,1762955454845,-500.0,0.00039178,20]
[393732270,1762955454854,-500.0,0.00039178,20]
[393732271,1762955454864,-500.0,0.00039178,20]
[393732272,1762955454873,-342.97822757,0.00039178,20]
[393732273,1762955454882,-334.17736198,0.00039178,20]
[393732274,1762955454891,-501.71147644,0.00039178,20]
[393732275,1762955454900,-526.55209677,0.00039178,20]
[393732276,1762955454909,-166.60280515,0.00039178,20]
[393732277,1762955454918,-500.0,0.00039178,20]
[393732278,1762955454927,-500.0,0.00039178,20]
[393732279,1762955454937,-500.0,0.00039178,20]
[393732280,1762955454946,-192.02538278,0.00039178,20]
[393732281,1762955454956,-500.0,0.00039178,2]
[393732282,1762955454965,-500.0,0.00039178,2]
[393732283,1762955454975,-309.5721749,0.00039178,20]
[393732284,1762955454984,-500.0,0.00039178,20]
[393732285,1762955454993,-500.0,0.00039178,20]
[393732286,1762955455002,-330.19,0.00039178,20]
[393732287,1762955455011,-512.59580184,0.00039178,20]
[393732288,1762955455021,-500.0,0.00039178,20]
[393732289,1762955455030,-564.39678099,0.00039178,20]
[393732290,1762955455039,-500.0,0.00039178,20]
[393732291,1762955455048,-193.3,0.00039178,20]
[393732292,1762955455058,-231.2781194,0.00039178,20]
[393732293,1762955455067,-500.0,0.00039178,20]
[393732294,1762955455076,-293.57921472,0.00039178,20]
[393732295,1762955455085,-474.11919851,0.00039178,20]
[393732296,1762955455095,-500.0,0.00039178,20]
[393732297,1762955455105,-625.92,0.00039178,20]
[393732298,1762955455114,-603.03767579,0.00039178,20]
[393732299,1762955455123,-500.0,0.00039178,20]
[393732300,1762955455132,-500.0,0.00039178,20]
[393732301,1762955455141,-500.0,0.00039178,20]
[393732302,1762955455150,-611.51173224,0.00039178,20]
[393732303,1762955455160,-500.0,0.00039178,20]
[393732304,1762955455168,-500.0,0.00039178,20]
[393732305,1762955455178,-500.0,0.00039178,20]
[393732306,1762955455187,-500.0,0.00039178,20]
[393732307,1762955455196,-500.0,0.00039178,20]
[393732308,1762955455205,-500.0,0.00039178,20]
[393732309,1762955455214,-500.0,0.00039178,20]
[393732310,1762955455223,-500.0,0.00039178,20]
[393732311,1762955455232,-500.0,0.00039178,20]
[393732312,1762955455241,-591.96287328,0.00039178,20]
[393732313,1762955455250,-500.0,0.00039178,20]
[393732314,1762955455260,-500.0,0.00039178,20]
[393732315,1762955455269,-500.0,0.00039178,20]
[393732316,1762955455278,-500.0,0.00039178,20]
[393732317,1762955455289,-500.0,0.00039178,20]
[393732318,1762955455298,-500.0,0.00039178,20]
[393732319,1762955455308,-500.0,0.00039178,20]
[393732320,1762955455317,-500.0,0.00039178,20]
[393732321,1762955455327,-176.26278913,0.00039178,20]
[393732322,1762955455336,-500.0,0.00039178,20]
[393732323,1762955455345,-500.0,0.00039178,20]
[393732324,1762955455356,-500.0,0.00039178,20]
[393732325,1762955455365,-500.0,0.00039178,20]
[393732326,1762955455375,-560.39275819,0.00039178,20]
[393732327,1762955455384,-355.31274548,0.00039178,20]
[393732328,1762955455394,-213.59407229,0.00039178,20]
[393732329,1762955455403,-500.0,0.00039178,20]
[393732330,1762955455412,-553.96596991,0.00039178,20]
[393732331,1762955455421,-500.0,0.00039178,20]
[393732332,1762955455430,-500.0,0.00039178,20]
[393732333,1762955455439,-500.0,0.00039178,20]
[393732334,1762955455449,-500.0,0.00039178,20]
[393732335,1762955455458,-500.0,0.00039178,20]
[393732336,1762955455467,-500.0,0.00039178,20]
[393732337,1762955455477,-500.0,0.00039178,20]
[393732338,1762955455487,-500.0,0.00039178,20]
[393732339,1762955455499,-500.0,0.00039178,20]
[393732340,1762955455510,-500.0,0.00039178,20]
[393732341,1762955455519,-500.0,0.00039178,20]
[393732342,1762955455531,-500.0,0.00039178,20]
[393732343,1762955455542,-212.67663224,0.00039178,20]
[393732344,1762955455551,-518.73407048,0.00039178,20]
[393732345,1762955455561,-500.0,0.00039178,20]
[393732346,1762955455573,-709.81,0.00039178,20]
[393732347,1762955455582,-500.0,0.00039178,20]
[393732348,1762955455590,-709.81,0.00039178,20]
[393732349,1762955455599,-500.0,0.00039178,20]
[393732350,1762955455609,-709.81,0.00039178,20]
[393732351,1762955455618,-500.0,0.00039178,20]
[393732352,1762955455626,-709.81,0.00039178,20]
[393732353,1762955455635,-709.81,0.00039178,20]
[393732354,1762955455643,-500.24410107,0.00039178,20]
[393732355,1762955455652,-709.81,0.00039178,20]
[393732356,1762955455660,-709.81,0.00039178,20]
[393732357,1762955455668,-500.0,0.00039178,20]
[393732358,1762955455678,-709.81,0.00039178,20]
[393732359,1762955455686,-162.95489172,0.00039178,20]
[393732360,1762955455694,-709.81,0.00039178,20]
[393732361,1762955455702,-500.0,0.00039178,20]
[393732362,1762955455711,-378.96984289,0.00039178,20]
[393732364,1762955458907,-57.3040233,0.00036809,2]
[393732365,1762955458922,-13756.99579308,0.00036809,2]
[393732366,1762955459085,-1080.27782214,0.00035492,2]
[393732367,1762955459094,-664.27741003,0.00036809,2]
[393732368,1762955459105,-1674.49047359,0.00036809,2]
[393732369,1762955459115,-156.53410877,0.00039046,15]
[393732370,1762955459124,-271.17541764,0.00039178,20]
[393732371,1762955459136,-59.66473947,0.00039178,20]
[393732372,1762955459146,-265.41920711,0.00039178,20]
[393732373,1762955463008,200.0,0.00040232,30]
[393732374,1762955511029,1000.0,0.00040232,120]
[393732375,1762955514585,1000.0,0.00040232,120]
[393732376,1762955516601,1000.0,0.00040232,120]
[393732377,1762955518318,1000.0,0.00040232,120]
[393732378,1762955524436,1000.0,0.00040232,120]
[393732379,1762955527899,1000.0,0.00040232,120]
[393732380,1762955529686,1000.0,0.00040232,120]
[393732381,1762955531033,1000.0,0.00040232,120]
[393732382,1762955533440,1000.0,0.00040232,120]
[393732383,1762955542447,200.0,0.00040232,30]
[393732384,1762955542820,300.0,0.00040232,30]
[393732385,1762955566388,215.8,0.00040232,30]
[393732386,1762955569835,172.13544,0.00040232,120]
[393732387,1762955616082,985.50622519,0.00040346,120]
[393732388,1762955629663,1149.0,0.00040346,30]
[393732389,1762955660193,865.12620302,0.00040346,30]
[393732390,1762955694744,851.0623966,0.00040346,60]
[393732391,1762955703275,605.17916165,0.00040346,30]
[393732392,1762955703761,1000.0,0.00040346,30]
[393732393,1762955703840,1000.0,0.00040346,30]
[393732394,1762955704599,1000.0,0.00040346,30]
[393732395,1762955705269,1000.0,0.00040346,30]
[393732396,1762955705331,1000.0,0.00040346,30]
[393732397,1762955706132,1000.0,0.00040346,30]
[393732399,1762955706403,1000.0,0.00040346,30]
[393732400,1762955706469,1000.0,0.00040346,30]
[393732402,1762955707247,1000.0,0.00040346,30]
[393732403,1762955707559,1000.0,0.00040346,30]
[393732405,1762955707650,1000.0,0.00040346,30]
[393732407,1762955708376,1000.0,0.00040346,30]
[393732408,1762955708844,150.02,0.00040346,30]
[393732409,1762955708915,1000.0,0.00040346,30]
[393732411,1762955708980,1000.0,0.00040346,30]
[393732413,1762955709733,466.26599046,0.00040346,30]
[393732414,1762955709836,1000.0,0.00040346,30]
[393732415,1762955709940,1000.0,0.00040346,30]
[393732418,1762955710990,981.22969114,0.00040346,30]
[393732419,1762955711137,843.23831103,0.00040346,30]
[393732422,1762955764180,200.0,0.00040346,30]
[393732423,1762955772070,462.277407,0.00040346,90]
[393732424,1762955830471,934.37227294,0.00040346,40]
[393732425,1762955845010,200.0,0.00040346,30]
[393732426,1762955845577,300.0,0.00040346,30]
[393732427,1762955860234,150.0,0.00040346,120]
[393732428,1762955861051,150.0,0.00040346,120]
[393732429,1762955861886,150.0,0.00040346,120]
[393732430,1762955885507,150.02,0.00040346,30]
[393732431,1762955938269,500.0,0.00040346,120]
[393732432,1762955952878,500.0,0.00040346,120]
[393732433,1762955961265,1020.6447919,0.00040346,30]
[393732434,1762955964583,150.0,0.00040346,120]
[393732435,1762955965372,150.0,0.00040346,120]
[393732436,1762955966176,150.0,0.00040346,120]
[393732437,1762955971972,569.57,0.00040346,120]
[393732438,1762955978797,150.0,0.00040346,120]
[393732439,1762956000069,150.0,0.00040346,120]
[393732440,1762956001152,150.0,0.00040346,120]
[393732441,1762956020584,169.99179,0.00040346,60]
[393732442,1762956020788,169.99179,0.00040346,60]
[393732443,1762956020991,1091.69092,0.00040346,60]
[393732444,1762956021091,169.99179,0.00040346,60]
[393732445,1762956021274,1091.69092,0.00040346,60]
[393732446,1762956021409,169.99179,0.00040346,60]
[393732447,1762956021583,1091.69092,0.00040346,60]
[393732448,1762956021881,1091.69092,0.00040346,60]
[393732449,1762956022193,1091.69092,0.00040346,60]
[393732450,1762956062516,200.0,0.00040344,30]
[393732451,1762956075552,185.0,0.00040344,30]
[393732452,1762956084076,1309.0,0.00040344,120]
[393732453,1762956086254,8999.33114267,0.00040344,30]
[393732455,1762956138293,500.0,0.00040344,30]
[393732456,1762956147383,200.0,0.00040344,30]
[393732457,1762956147954,300.0,0.00040344,30]
[393732458,1762956173201,150.0,0.00040344,30]
[393732459,1762956174807,215.8,0.00040344,30]
[393732460,1762956176400,215.8,0.00040344,30]
[393732461,1762956183220,452.32362992,0.00040344,30]
[393732462,1762956183461,512.6352706,0.00040344,120]
[393732464,1762956361458,200.0,0.00040344,30]
[393732466,1762956428594,244.518713,0.00040344,30]
[393732467,1762956436010,312.02583276,0.00040344,120]
[393732468,1762956445127,200.0,0.00040344,30]
[393732469,1762956445570,300.0,0.00040344,30]
[393732470,1762956551905,150.01,0.00040344,30]
[393732471,1762956553946,150.02,0.00040344,30]
[393732472,1762956556206,150.02,0.00040344,30]
[393732473,1762956558249,150.02,0.00040344,30]
[393732474,1762956560980,150.02,0.00040344,30]
[393732475,1762956561123,1000.0,0.00040344,30]
[393732476,1762956561718,1000.0,0.00040344,30]
[393732477,1762956563288,150.02,0.00040344,30]
[393732478,1762956564904,150.02,0.00040344,30]
[393732479,1762956566976,150.02,0.00040344,30]
[393732480,1762956568937,150.02,0.00040344,30]
[393732481,1762956571682,150.02,0.00040344,30]
[393732482,1762956573797,150.02,0.00040344,30]
[393732483,1762956581356,150.02,0.00040344,30]
[393732484,1762956582788,150.02,0.00040344,30]
[393732485,1762956583876,150.02,0.00040344,30]
[393732486,1762956595187,712.38649338,0.00040344,120]
[393732487,1762956595972,150.02,0.00040344,30]
[393732493,1762956599094,150.02,0.00040344,30]
[393732494,1762956602276,150.02,0.00040344,30]
[393732495,1762956605147,150.02,0.00040344,30]
[393732496,1762956608422,150.02,0.00040344,30]
[393732497,1762956615220,150.02,0.00040344,30]
[393732498,1762956616038,150.02,0.00040344,30]
[393732499,1762956618911,150.02,0.00040344,30]
[393732500,1762956621439,150.02,0.00040344,30]
[393732501,1762956622962,150.02,0.00040344,30]
[393732502,1762956630659,150.02,0.00040344,30]
[393732537,1762956633337,150.02,0.00040344,30]
[393732538,1762956634594,150.02,0.00040344,30]
[393732539,1762956635945,150.02,0.00040344,30]
[393732540,1762956636617,150.02,0.00040344,30]
[393732541,1762956637839,150.02,0.00040344,30]
[393732544,1762956638013,-206.52380219,0.00034534,120]
[393732545,1762956638023,-354.26702805,0.00035309,2]
[393732546,1762956638033,-500.0,0.00035409,30]
[393732547,1762956638043,-500.0,0.0003559,30]
[393732548,1762956638053,-449.6465707,0.00035603,30]
[393732549,1762956638237,-50.3534293,0.00035603,30]
[393732551,1762956638247,-206.3313054,0.00035751,120]
[393732553,1762956638256,-500.0,0.00035765,30]
[393732554,1762956638266,-168.0,0.00035848,2]
[393732555,1762956638275,-500.0,0.0003586,30]
[393732556,1762956638285,-168.0,0.00035945,2]
[393732557,1762956638295,-500.0,0.00036074,30]
[393732559,1762956638305,-510.13117198,0.00036144,30]
[393732561,1762956638315,-168.0,0.00036172,2]
[393732562,1762956638324,-168.0,0.00036172,2]
[393732563,1762956638333,-2445.42,0.00036172,2]
[393732564,1762956638347,-168.0,0.00036451,2]
[393732566,1762956638356,-1000.0,0.00036809,2]
[393732567,1762956638365,-218.27,0.00036908,7]
[393732569,1762956638375,-206.3313054,0.00036969,120]
[393732570,1762956638384,-200.0,0.00037114,2]
[393732571,1762956638394,-500.0,0.00037117,30]
[393732572,1762956638404,-206.52380219,0.00037273,120]
[393732573,1762956638415,-184.95,0.00037308,120]
[393732574,1762956638425,-173.14,0.00037338,2]
[393732575,1762956638435,-3661.62,0.00037412,2]
[393732576,1762956638444,-250.0,0.00037443,2]
[393732577,1762956638454,-218.27,0.00037456,8]
[393732578,1762956638463,-982.55,0.00037462,30]
[393732579,1762956638473,-154.30324322,0.00037492,60]
[393732580,1762956638483,-249.0,0.00037562,2]
[393732581,1762956638497,-154.03,0.00037606,60]
[393732582,1762956638507,-158.06,0.00037606,60]
[393732583,1762956638518,-154.03,0.00037706,60]
[393732584,1762956638528,-158.06,0.00037706,60]
[393732585,1762956638538,-154.03,0.00037806,60]
[393732586,1762956638551,-158.06,0.00037806,60]
[393732587,1762956638560,-168.0,0.00037879,2]
[393732588,1762956638569,-500.0,0.00037901,30]
[393732589,1762956638579,-394.559,0.00037906,50]
[393732590,1762956638588,-154.03,0.00037906,60]
[393732591,1762956638597,-158.06,0.00037906,60]
[393732592,1762956638607,-218.27,0.00038004,9]
[393732593,1762956638617,-154.03,0.00038006,60]
[393732594,1762956638626,-158.06,0.00038006,60]
[393732595,1762956638636,-298.22613208,0.00038048,30]
[393732596,1762956638645,-500.0,0.00038079,30]
[393732597,1762956638655,-15848.5414567,0.00038103,2]
[393732598,1762956638665,-154.03,0.00038106,60]
[393732599,1762956638676,-158.06,0.00038106,60]
[393732600,1762956638686,-156.5,0.00038179,120]
[393732601,1762956638696,-206.3313054,0.00038187,120]
[393732602,1762956638705,-154.03,0.00038206,60]
[393732603,1762956638715,-158.06,0.00038206,60]
[393732604,1762956638725,-833.61254363,0.00038274,2]
[393732605,1762956638740,-5000.0,0.00038275,2]
[393732606,1762956638749,-154.03,0.00038306,60]
[393732607,1762956638759,-158.06,0.00038306,60]
[393732608,1762956638769,-516.04162998,0.00038389,30]
[393732609,1762956638779,-154.03,0.00038406,120]
[393732610,1762956638790,-158.06,0.00038406,120]
[393732611,1762956638799,-154.03,0.00038506,120]
[393732612,1762956638809,-158.06,0.00038506,120]
[393732613,1762956638819,-218.27,0.00038552,10]
[393732614,1762956638832,-150.0,0.00038575,2]
[393732615,1762956638841,-177.14,0.00038575,2]
[393732616,1762956638851,-1207.25,0.00038575,2]
[393732617,1762956638861,-1207.25,0.00038575,2]
[393732618,1762956638871,-177.14,0.00038575,2]
[393732619,1762956638881,-1204.65,0.00038575,2]
[393732620,1762956638890,-177.14,0.00038575,2]
[393732621,1762956638900,-177.14,0.00038575,2]
[393732622,1762956638911,-177.14,0.00038575,2]
[393732623,1762956638922,-175.75,0.00038575,2]
[393732624,1762956638932,-154.03,0.00038606,120]
[393732625,1762956638941,-158.06,0.00038606,120]
[393732626,1762956638951,-500.0,0.00038646,30]
[393732627,1762956638960,-1000.0,0.000387,14]
[393732628,1762956638970,-154.03,0.00038706,120]
[393732629,1762956638980,-158.06,0.00038706,120]
[393732630,1762956638990,-500.0,0.00038723,30]
[393732631,1762956638999,-151.0,0.00038728,2]
[393732632,1762956639010,-151.0,0.00038728,2]
[393732633,1762956639252,-151.0,0.00038728,2]
[393732634,1762956639263,-151.0,0.00038728,2]
[393732635,1762956639272,-151.0,0.00038728,2]
[393732636,1762956639281,-151.0,0.00038728,2]
[393732637,1762956639291,-151.0,0.00038728,2]
[393732638,1762956639301,-205.402,0.00038751,2]
[393732639,1762956639317,-608.0,0.00038751,2]
[393732640,1762956639327,-2143.0,0.00038751,2]
[393732641,1762956639337,-6482.0,0.00038751,2]
[393732642,1762956639346,-520.129,0.00038751,2]
[393732643,1762956639356,-172.94536,0.0003879,2]
[393732644,1762956639366,-168.0,0.00038791,2]
[393732645,1762956639376,-2000.0,0.000388,14]
[393732646,1762956639385,-154.03,0.00038806,120]
[393732647,1762956639395,-158.06,0.00038806,120]
[393732648,1762956639404,-3000.0,0.000389,14]
[393732649,1762956639414,-154.03,0.00038906,120]
[393732650,1762956639433,-158.06,0.00038906,120]
[393732651,1762956639445,-1000.0,0.00038968,120]
[393732652,1762956639456,-2500.0,0.00038968,2]
[393732653,1762956639467,-4738.996181,0.00038973,2]
[393732654,1762956639476,-156.53410877,0.00038973,15]
[393732655,1762956639486,-203.34167533,0.00038976,2]
[393732656,1762956639497,-172.94537,0.0003899,2]
[393732657,1762956639507,-22114.38905034,0.00039,14]
[393732658,1762956639517,-154.03,0.00039006,120]
[393732659,1762956639527,-158.06,0.00039006,120]
[393732660,1762956639537,-163.51,0.00039058,2]
[393732661,1762956639547,-500.0,0.00039061,10]
[393732662,1762956639556,-500.0,0.00039061,60]
[393732663,1762956639566,-150.0,0.00039061,15]
[393732664,1762956639576,-150.0,0.00039061,120]
[393732665,1762956639586,-500.0,0.00039061,15]
[393732666,1762956639596,-150.0,0.00039061,15]
[393732667,1762956639606,-500.0,0.00039061,2]
[393732668,1762956639616,-150.0,0.00039061,15]
[393732669,1762956639626,-150.0,0.00039061,2]
[393732670,1762956639637,-500.0,0.00039061,15]
[393732671,1762956639647,-150.0,0.00039061,15]
[393732672,1762956639657,-500.0,0.00039068,30]
[393732673,1762956639666,-116126.06586959,0.00039068,2]
[393732674,1762956639756,150.02,0.00040344,30]
[393732678,1762956640161,150.02,0.00040344,30]
[393732679,1762956640183,-3029.01471724,0.00039068,2]
[393732680,1762956640195,-1061.22801698,0.00039068,2]
[393732681,1762956640242,-1770.44831419,0.00039068,2]
[393732716,1762956641585,150.02,0.00040344,30]
[393732717,1762956642410,150.02,0.00040344,30]
[393732759,1762956643365,-160.72,0.00035375,2]
[393732760,1762956643375,-2851.54796385,0.00038973,2]
[393732761,1762956643385,-298013.243082,0.00039068,2]
[393732762,1762956643394,-615.21991021,0.00039073,5]
[393732763,1762956643404,-174.31941247,0.00039078,12]
[393732764,1762956643414,-167.47242141,0.00039078,2]
[393732765,1762956643423,-5000.0,0.00039078,30]
[393732766,1762956643433,-788.845818,0.000391,38]
[393732767,1762956643443,-547.485106,0.000391,38]
[393732768,1762956643452,-218.27,0.000391,11]
[393732769,1762956643462,-154.03,0.00039106,120]
[393732770,1762956643472,-158.13,0.00039106,120]
[393732771,1762956643481,-4738.99618093,0.00039114,2]
[393732773,1762956643491,-159.84209483,0.00039173,5]
[393732774,1762956643501,-161.31426345,0.00039173,2]
[393732775,1762956643511,-502.29921572,0.00039173,5]
[393732776,1762956643523,-500.0,0.00039173,5]
[393732777,1762956643532,-500.0,0.00039176,15]
[393732778,1762956643544,-159.13123537,0.00039176,2]
[393732779,1762956643554,-500.0,0.00039176,15]
[393732780,1762956643563,-271.35514559,0.00039176,15]
[393732781,1762956643572,-500.0,0.00039176,15]
[393732782,1762956643582,-500.0,0.00039176,15]
[393732783,1762956643591,-500.0,0.00039176,15]
[393732784,1762956643601,-500.0,0.00039176,15]
[393732785,1762956643610,-418.90870711,0.00039176,15]
[393732786,1762956643620,-207.61757181,0.00039177,120]
[393732787,1762956643630,-151.0,0.00039177,20]
[393732788,1762956643639,-574.12855637,0.00039177,20]
[393732789,1762956643649,-500.0,0.00039177,20]
[393732791,1762956643659,-151.0,0.00039177,20]
[393732792,1762956643668,-595.37131296,0.00039177,20]
[393732793,1762956643678,-196.0098705,0.00039177,20]
[393732794,1762956643687,-500.0,0.00039177,20]
[393732795,1762956643698,-151.0,0.00039177,20]
[393732796,1762956643708,-254.77228458,0.00039177,20]
[393732797,1762956643718,-500.0,0.00039177,20]
[393732798,1762956643728,-151.0,0.00039177,20]
[393732799,1762956643738,-500.0,0.00039177,20]
[393732800,1762956643748,-151.0,0.00039177,20]
[393732801,1762956643758,-500.0,0.00039177,20]
[393732802,1762956643767,-151.0,0.00039177,20]
[393732803,1762956643776,-500.0,0.00039177,20]
[393732804,1762956643786,-500.0,0.00039177,20]
[393732805,1762956643795,-151.0,0.00039177,20]
[393732806,1762956643805,-500.0,0.00039177,20]
[393732807,1762956643814,-500.0,0.00039177,20]
[393732808,1762956643824,-151.0,0.00039177,20]
[393732809,1762956643834,-500.0,0.00039177,20]
[393732810,1762956643845,-151.0,0.00039177,20]
[393732811,1762956643855,-500.0,0.00039177,20]
[393732812,1762956643864,-500.0,0.00039177,20]
[393732813,1762956643877,-151.0,0.00039177,20]
[393732814,1762956643887,-500.0,0.00039177,20]
[393732815,1762956643898,-500.0,0.00039177,20]
[393732816,1762956643909,-151.0,0.00039177,20]
[393732817,1762956643920,-500.0,0.00039177,20]
[393732818,1762956643930,-500.0,0.00039177,20]
[393732819,1762956643939,-500.0,0.00039177,20]
[393732820,1762956643949,-500.0,0.00039177,20]
[393732821,1762956643959,-500.0,0.00039177,20]
[393732822,1762956643969,-500.0,0.00039177,20]
[393732823,1762956643980,-500.0,0.00039177,20]
[393732824,1762956643990,-500.0,0.00039177,20]
[393732825,1762956644000,-156.587,0.00039177,20]
[393732826,1762956644010,-277.35679052,0.00039177,20]
[393732827,1762956644021,-287.61899177,0.00039177,20]
[393732828,1762956644031,-298.26089446,0.00039177,20]
[393732829,1762956644041,-309.29654756,0.00039177,20]
[393732830,1762956644051,-320.74051982,0.00039177,20]
[393732831,1762956644061,-332.60791905,0.00039177,20]
[393732832,1762956644075,-344.91441206,0.00039177,20]
[393732833,1762956644084,-247.6552838,0.00039177,20]
[393732834,1762956644094,-999.0,0.00039177,120]
[393732835,1762956644104,-1000.0,0.00039177,120]
[393732836,1762956644113,-1000.0,0.00039177,120]
[393732837,1762956644125,-1000.0,0.00039177,120]
[393732838,1762956644134,-1000.0,0.00039177,120]
[393732839,1762956644144,-1000.0,0.00039177,120]
[393732840,1762956644155,-1000.0,0.00039177,120]
[393732841,1762956644165,-1000.0,0.00039177,120]
[393732842,1762956644175,-1000.0,0.00039177,120]
[393732843,1762956644185,-1000.0,0.00039177,120]
[393732844,1762956644196,-1000.0,0.00039177,120]
[393732845,1762956644205,-1000.0,0.00039177,120]
[393732846,1762956644215,-1000.0,0.00039177,120]
[393732847,1762956644225,-178.27572125,0.00039177,120]
[393732848,1762956644235,-500.0,0.00039177,120]
[393732849,1762956644244,-500.0,0.00039177,120]
[393732850,1762956644253,-500.0,0.00039177,120]
[393732851,1762956644267,-500.0,0.00039177,120]
[393732852,1762956644276,-500.0,0.00039177,120]
[393732853,1762956644285,-500.0,0.00039177,120]
[393732854,1762956644295,-500.0,0.00039177,120]
[393732855,1762956644304,-500.0,0.00039177,120]
[393732856,1762956644313,-500.0,0.00039177,120]
[393732857,1762956644323,-500.0,0.00039177,120]
[393732858,1762956644332,-500.0,0.00039177,120]
[393732859,1762956644341,-11218.61376177,0.00039178,29]
[393732860,1762956644351,-1743.0,0.00039178,5]
[393732861,1762956644361,-500.0,0.00039178,20]
[393732862,1762956644370,-500.0,0.00039178,20]
[393732863,1762956644379,-500.0,0.00039178,20]
[393732864,1762956644389,-500.0,0.00039178,20]
[393732865,1762956644398,-500.0,0.00039178,20]
[393732866,1762956644407,-500.0,0.00039178,20]
[393732867,1762956644417,-500.0,0.00039178,20]
[393732868,1762956644426,-500.0,0.00039178,20]
[393732869,1762956644436,-500.0,0.00039178,20]
[393732870,1762956644445,-500.0,0.00039178,20]
[393732871,1762956644457,-500.0,0.00039178,20]
[393732872,1762956644466,-500.0,0.00039178,20]
[393732873,1762956644476,-1161.71,0.00039178,20]
[393732874,1762956644485,-1161.71,0.00039178,20]
[393732875,1762956644495,-1161.71,0.00039178,20]
[393732876,1762956644505,-1161.71,0.00039178,20]
[393732877,1762956644514,-1161.71,0.00039178,20]
[393732878,1762956644525,-1161.71,0.00039178,20]
[393732879,1762956644535,-1161.71,0.00039178,20]
[393732880,1762956644545,-1161.71,0.00039178,20]
[393732881,1762956644554,-1161.71,0.00039178,20]
[393732882,1762956644564,-1161.71,0.00039178,20]
[393732883,1762956644573,-1161.71,0.00039178,20]
[393732884,1762956644583,-1161.71,0.00039178,20]
[393732885,1762956644593,-703.28,0.00039178,20]
[393732886,1762956644603,-703.28,0.00039178,20]
[393732887,1762956644612,-703.28,0.00039178,20]
[393732888,1762956644622,-703.28,0.00039178,20]
[393732889,1762956644631,-703.28,0.00039178,20]
[393732890,1762956644641,-703.28,0.00039178,20]
[393732891,1762956644651,-703.28,0.00039178,20]
[393732892,1762956644660,-703.28,0.00039178,20]
[393732893,1762956644669,-703.28,0.00039178,20]
[393732894,1762956644679,-703.28,0.00039178,20]
[393732895,1762956644688,-703.28,0.00039178,20]
[393732896,1762956644698,-703.28,0.00039178,20]
[393732897,1762956644707,-500.0,0.00039178,20]
[393732898,1762956644716,-529.09218094,0.00039178,30]